Cogmind - Beta 15 @@@ ROGUE MODE // 2025.08.23 @ 20:23:45 Player: Anting Result: Destroyed by 6E-MB0(R) with Subdweller Machine Gun Performance ------------- Evolutions (0) 0 Regions Visited (2) 400 Robots Destroyed (22) 110 Value Destroyed (466) 466 Prototype IDs (0) 0 Alien Tech Used (0) 0 Bonus (0) 0 TOTAL SCORE: 976 Bonus ------- None Cogmind --------- Core Integrity 0/250 Matter 290/300 Energy 100/100 System Corruption 0% Temperature Cool (0) Movement Walking (680) Ox8 Location -10/Subcaves Parts ------- > --- POWER (1) -------- (None) > --- PROPULSION (2) --- Aluminum Leg Subdweller Monowheel > --- UTILITY (2) ------ Small Storage Unit Huge Storage Unit > --- WEAPON (2) ------- Mining Claw > --- INVENTORY (25) --- Aluminum Leg Aluminum Leg Hover Unit Flight Unit Flight Unit Flight Unit Flight Unit Peak State ------------ > --- POWER ------------ Subdweller Power Source > --- PROPULSION ------- Light Treads Light Treads > --- UTILITY ---------- Small Storage Unit Huge Storage Unit > --- WEAPON ----------- Subdweller Machine Gun > --- INVENTORY -------- Aluminum Leg Aluminum Leg Aluminum Leg Subdweller Monowheel Hover Unit Flight Unit Flight Unit Flight Unit Flight Unit Mining Claw [Rating: 9] Favorites ----------- Power Ion Engine Engine Ion Engine Propulsion Light Treads Treads Light Treads Leg Aluminum Leg Wheel Subdweller Monowheel Utility Small Storage Unit Storage Small Storage Unit Weapon Assault Rifle Energy Gun Medium Laser Ballistic Gun Assault Rifle Slashing Weapon Mining Claw Build | -11 -10 -10 ------- Run | Yrd Mat Sub Slots Evolved . | . . . Power . | . . . Propulsion . | . . . Utility . | . . . Weapon . | . . . Parts Attached 19 | 6 3 10 Power 3 | 1 . 2 Engine 3 | 1 . 2 Core . | . . . Reactor . | . . . Propulsion 7 | 2 . 5 Treads 5 | 2 . 3 Leg 1 | . . 1 Wheel 1 | . . 1 Hover . | . . . Flight . | . . . Utility 2 | 1 1 . Device . | . . . Storage 2 | 1 1 . Processor . | . . . Hackware . | . . . Protection . | . . . Artifact . | . . . Weapon 7 | 2 2 3 Energy Gun 2 | 1 . 1 Energy Cannon . | . . . Ballistic Gun 4 | 1 1 2 Ballistic Cannon . | . . . Launcher . | . . . Special Weapon . | . . . Impact Weapon . | . . . Slashing Weapon 1 | . 1 . Piercing Weapon . | . . . Special Melee Weapon . | . . . Unidentified Prototypes . | . . . Parts Lost 14 | . 1 13 Power 3 | . . 3 Propulsion 5 | . . 5 Utility . | . . . Weapon 6 | . 1 5 Highest Loss Streak 8 | . 1 8 To Critical Strikes . | . . . Average Backups 12 | 2 12 13 Power . | . 1 . Propulsion 8 | 1 8 10 Utility . | . . . Weapon 2 | . 2 2 Tool/Special . | . . . Unused Backups 7 | . . 7 Power . | . . . Propulsion 7 | . . 7 Utility . | . . . Weapon . | . . . Tool/Special . | . . . Average Slot Usage (%) 97 | . 98 91 Engine 13 | . 14 10 Treads 27 | . 28 24 Storage 27 | . 26 28 Energy Gun 12 | . 12 10 Ballistic Gun 13 | . 14 11 Slashing Weapon 1 | . 1 1 Peak Build Rating 9 | 6 8 9 Average Rating 7 | 4 7 7 On Entrance 4 | . 6 8 Naked Turns . | . . . Heaviest Build 94 | 14 94 94 Greatest Support 40 | 40 40 40 Greatest Overweight (x) 8 | . 2 8 Average Overweight (x) 1 | . 1 2 Largest Inventory Capacity 25 | 8 25 25 Average Capacity 23 | 6 23 25 Most Carried 16 | 4 16 15 Average Carried 12 | 2 12 12 Final Capacity 25 | 8 25 25 Final Carried 15 | 4 15 7 Class Distribution -------------------- 100% | Mutant Dominant Class ---------------- Mutant | -10/Materials Mutant | -10/Subcaves Resources | -11 -10 -10 ----------- Run | Yrd Mat Sub Matter Collected 563 | 175 167 221 Remotely . | . . . Salvage Created 608 | . 357 251 Parts 55 | . 38 17 Haulers Intercepted 2 | . 2 . Recyclers Shooed . | . . . Parts Field Recycled . | . . . Retrieved Matter . | . . . Parts Self-Destructed . | . . . Prevented . | . . . Kills | -11 -10 -10 ------- Run | Yrd Mat Sub Combat Hostiles Destroyed 17 | . 12 5 Guns 16 | . 11 5 AOE 1 | . 1 . Classes Destroyed 6 | . 5 1 Builder 1 | . 1 . Hauler 2 | . 2 . Watcher 2 | . 2 . Swarmer 9 | . 9 . Grunt 3 | . 3 . Subdweller 5 | . . 5 Best Kill Streak 3 | . 3 3 Combat Bots Only 3 | . 3 3 Max Kills in Single Turn 1 | . 1 1 Gunslinging . | . . . Exploded 1 | . 1 . Melee . | . . . Uniques/NPCs Destroyed . | . . . Combat | -11 -10 -10 -------- Run | Yrd Mat Sub Hostile Shots Fired 149 | . 64 85 Missed 39 | . 11 28 Hits 110 | . 53 57 Projectile 110 | . 53 57 Critical Strikes 1 | . . 1 Damage Taken 1870 | . 662 1208 Core 257 | . 66 191 Absorbed by Shields . | . . . Core Remaining (%) 100 | 100 . . Volleys Fired 90 | . 45 45 Largest 2 | . 2 2 Hottest 70 | . 70 70 Shots Fired 156 | . 89 67 Gun 156 | . 89 67 Cannon . | . . . Launcher . | . . . Special . | . . . Kinetic 90 | . 48 42 Thermal 61 | . 41 20 Explosive . | . . . Electromagnetic 5 | . . 5 Robot Hit Streak 17 | . 8 17 Robot Miss Streak 5 | . 5 1 Penetration Max . | . . . Secondary Targets 1 | . . 1 Max Gunslinging Chain 1 | . . 1 Shots Hit Robots 110 | . 46 64 Core Hits 36 | . 23 13 Critical Kills . | . . . Critical Parts Destroyed . | . . . Critical Strikes 4 | . 2 2 Burn 4 | . 2 2 Melee Attacks 8 | . 1 7 Impact . | . . . Slashing 8 | . 1 7 Piercing . | . . . Sneak Attacks . | . . . Combat Hostiles . | . . . Follow-up Attacks . | . . . Damage Inflicted 1832 | . 900 932 Guns 1476 | . 657 819 Cannons . | . . . Explosions 243 | . 243 . Melee 113 | . . 113 Ramming . | . . . Kinetic 883 | . 343 540 Thermal 781 | . 557 224 Explosive . | . . . Electromagnetic 55 | . . 55 Impact . | . . . Slashing 113 | . . 113 Piercing . | . . . Highest Corruption . | . . . Average Corruption . | . . . Corruption Purged . | . . . Corruption Blocked . | . . . Overload Shots . | . . . Overflow Damage 62 | . 62 . Projectiles . | . . . Explosions 62 | . 62 . Melee . | . . . Knockbacks . | . . . Impact . | . . . Kinetic . | . . . Secondary . | . . . Self-Inflicted Damage 205 | . 205 . Shots 2 | . 2 . Rammed . | . . . Targets Rammed . | . . . Kicked . | . . . Crushed . | . . . Highest Temperature 108 | . 108 . Average Temperature 31 | . 31 . Received Heat Transfer 102 | . 60 42 Siege Activations . | . . . Martial Activations . | . . . Shielding Activations . | . . . Robots Disrupted . | . . . Combat Hostiles . | . . . Robots Corrupted . | . . . Combat Hostiles . | . . . Parts Fried . | . . . Impact Corruptions . | . . . Robots Melted . | . . . Combat Hostiles . | . . . Parts Melted 4 | . 4 . Heat Transferred 2037 | . 1223 814 Parts Sabotaged . | . . . Parts Stolen . | . . . Parts Stripped . | . . . Power Chain Reactions . | . . . Alert | -11 -10 -10 ------- Run | Yrd Mat Sub Maximum Alert Level . | . . . Low Security (%) 100 | 100 100 . Level 1 . | . . . Level 2 . | . . . Level 3 . | . . . Level 4 . | . . . Level 5 . | . . . High Security . | . . . Max Security . | . . . Peak Influence 95 | . 95 . Initial . | . . . Average 22 | . 23 . Influence Increases 371 | . 371 . Destroy 0b10 Robot/C 240 | . 240 . Destroy 0b10 Robot/NC 25 | . 25 . Destroy Leader 48 | . 48 . Disable Machine 30 | . 30 . Destroy Structure 28 | . 28 . Influence Decreases 371 | . 315 56 Entered New Map 28 | . . 28 Time Decay 333 | . 305 28 Lost Part 10 | . 10 . Squads Dispatched . | . . . Investigation . | . . . Extermination . | . . . Reinforcement . | . . . Assault . | . . . Garrison . | . . . Intercept . | . . . Searches Triggered . | . . . Construction Impeded . | . . . Haulers Reinforced . | . . . Active Scanning Responses . | . . . Cargo Convoy Interrupts . | . . . Stealth | -11 -10 -10 --------- Run | Yrd Mat Sub Distress Signals 1 | . 1 . Communications Jammed . | . . . Distress Signals . | . . . Times Spotted 25 | . 19 6 Peak Tracking Total 4 | . 4 4 Tactical Retreats . | . . . Traps | -11 -10 -10 ------- Run | Yrd Mat Sub Traps Triggered . | . . . Indirectly . | . . . Trap Hack Attempts . | . . . Triggered . | . . . Disarmed . | . . . Reprogrammed . | . . . Reused . | . . . Traps Extracted . | . . . Installed . | . . . Triggered . | . . . Machines | -11 -10 -10 ---------- Run | Yrd Mat Sub Machines Disabled 2 | . 2 . Max in Single Turn 2 | . 2 . Machines Repaired . | . . . Machines Dismantled . | . . . Machines Sabotaged . | . . . Overloaded Fab Kills . | . . . Hacking | -11 -10 -10 --------- Run | Yrd Mat Sub Machines Accessed . | . . . Terminals . | . . . Fabricators . | . . . Repair Stations . | . . . Recycling Units . | . . . Scanalyzers . | . . . Garrison Access . | . . . Total Hacks . | . . . Successful . | . . . Failed . | . . . Catastrophic . | . . . Database Lockouts . | . . . Manual . | . . . Terminals . | . . . Fabricators . | . . . Repair Stations . | . . . Recycling Units . | . . . Scanalyzers . | . . . Garrison Access . | . . . Terminal Hacks . | . . . Fabricator Hacks . | . . . Repair Station Hacks . | . . . Recycling Unit Hacks . | . . . Scanalyzer . | . . . Garrison Access Hacks . | . . . Unauthorized Hacks . | . . . Terminals . | . . . Fabricators . | . . . Repair Stations . | . . . Recycling Units . | . . . Scanalyzers . | . . . Garrison Access . | . . . Data Cores Recovered . | . . . Used . | . . . Hacking Detections . | . . . Full Trace Events . | . . . Feedback Events . | . . . Feedback Blocked . | . . . Robot Schematics Acquired . | . . . Robots Built . | . . . Authchips . | . . . Time . | . . . Total Robot Build Rating . | . . . Part Schematics Acquired . | . . . Parts Built . | . . . Authchips . | . . . Time . | . . . Total Part Build Rating . | . . . Parts Repaired . | . . . Time . | . . . Parts Recycled . | . . . Recycled Matter . | . . . Retrieved Matter . | . . . Retrieved Components . | . . . Parts Scanalyzed . | . . . Part Schematics Acquired . | . . . Parts Damaged . | . . . Bothacking | -11 -10 -10 ------------ Run | Yrd Mat Sub Used RIF Installer . | . . . Robots Hacked . | . . . Non-combat . | . . . Combat . | . . . Robot Hacks Applied . | . . . Relay Couplers Released . | . . . Fabnet Peak Effective % . | . . . Robots Rewired . | . . . Allies Hacked . | . . . Hacks Repelled . | . . . Allies | -11 -10 -10 -------- Run | Yrd Mat Sub Total Allies . | . . . Largest Group . | . . . Highest-Rated Group . | . . . Highest-Rated Ally . | . . . Total Orders . | . . . Ally Attacks . | . . . Total Damage . | . . . Kills . | . . . Allies Corrupted . | . . . Allies Melted . | . . . Intel | -11 -10 -10 ------- Run | Yrd Mat Sub Active Infowar (turns) . | . . . Robot Analysis Total . | . . . Derelict Logs Recovered 2 | . . 2 Drone Launches . | . . . Drone Recoveries . | . . . Exploration | -11 -10 -10 ------------- Run | Yrd Mat Sub Turns Passed 2389 | 79 1909 401 Spaces Moved 704 | 44 589 71 Core 3 | 3 . . Treads 690 | 41 589 60 Legs 2 | . . 2 Wheels 9 | . . 9 Hover . | . . . Flight . | . . . Fastest Speed 50 | 50 160 150 Average Speed 289 | 152 297 308 Slowest Speed 680 | 160 320 680 Overloaded Moves . | . . . Propulsion Burnouts . | . . . Robots Hopped . | . . . Potential Cave-ins . | . . . Cave-ins Triggered . | . . . Exploration Rate (%) 32 | 4 87 7 Regions Visited 2 Branch Regions 1 Pre-discovered Areas . | . . . Known Exits Taken . | . . . Unknown Exits Taken 2 | 1 1 . Scrap Searched . | . . . Spaces Dug 1 | . 1 . Terrain Destroyed 24 | . 24 . Melee 1 | . 1 . Projectile . | . . . AOE 23 | . 23 . Terrain Rammed . | . . . Walls Destroyed . | . . . Machines Disabled . | . . . Actions | -11 -10 -10 --------- Run | Yrd Mat Sub Total 886 | 53 653 180 Wait 46 | . 2 44 Move 702 | 43 588 71 Hop . | . . . Pick Up 18 | 4 12 2 Fast Attach 8 | 6 1 1 Attach 11 | . 1 10 Detach . | . . . Swap 3 | . 3 . Drop . | . . . Fire 90 | . 45 45 Melee 8 | . 1 7 Ram . | . . . Kick . | . . . Crush . | . . . Escape Stasis . | . . . Rewire . | . . . Trap . | . . . Miscellaneous . | . . . Route ------- -11/Scrapyard -10/Materials (discovered 4 exits: [*Mat x3] / [*Sub]) -10/Subcaves History --------- Turn | Location | Event 5 | -11/Scrapyard | Discovered new exit (range 15) 80 | -11/Scrapyard | Entered Materials 306 | -10/Materials | Build established: Mutant 384 | -10/Materials | Discovered new exit (range 4) 1667 | -10/Materials | Discovered new exit (range 15) 1925 | -10/Materials | Discovered new exit (range 4) 1960 | -10/Materials | Discovered new exit (range 10) 1989 | -10/Materials | Entered Subcaves 1990 | -10/Subcaves | Approached by a straggling Scientist 1999 | -10/Subcaves | Learned 4 Materials zone layouts 2203 | -10/Subcaves | A Subdweller sparked back to life 2266 | -10/Subcaves | Lost 5 parts (2p2n1w) 2300 | -10/Subcaves | Core integrity fell below 50% 2373 | -10/Subcaves | Core integrity fell below 20% 2390 | -10/Subcaves | Destroyed by 6E-MB0(R) with Subdweller Machine Gun Last Messages --------------- 02310_ YE-3QH(R) destroyed. 02313_ Subatomizers dissect the Sub. Optics. 02319_ HL-2QY(R) affixes Scrap Shield Fragment to Scrap Shield. 02320_ Lgt. Treads destroyed. 02323_ Subatomizers dissect the Sub. Optics. 02323_ HL-2QY(R) affixes Scrap Shield Fragment to Scrap Shield. 02328_ HL-2QY(R) destroyed. 02336_ Subatomizers dissect the Sub. Optics. 02339_ Sub. Machine Gun destroyed. 02341_ Acquired 96 matter. 02347_ Subatomizers dissect the Sub. Optics. 02352_ Sub. Power Source destroyed. 02356_ Acquired 21 matter. 02358_ 6E-MB0(R) affixes Scrap Shield Fragment to Scrap Shield. 02370_ Lgt. Treads destroyed. 02381_ 6E-MB0(R) affixes Scrap Shield Fragment to Scrap Shield. Map ----- +----------------------------------------------------+ | ?????????????????????????????????????????????????? | | ?????????????????????????????????????????????????? | | ?????????????????????????????????????????????????? | | ?????????????????????????????????????????????????? | | ?????????????????????????????????????????????????? | | ?????????????????????????????????????????????????? | | ?????????????????????????????????????????????????? | | ?????????????????????????????????????????????????? | | ?????????????????????????????????????????????????? | | ?????????????????????????????????????????????????? | | ?????????????????????????????????????????????????? | | ?????????????????????????????????????????????????? | | ???????????????????????????????##????????????????? | | ??????????????????????????????# #????????????????? | | ????????????????????????????## #????????????????? | | ??????????????????????????### ##???????????????? | | ?????????????????????????## ????????????????? | | ?????????????????????????# " #????????????????? | | ?????????????????????????# ###??????????????? | | ?????????????????????????""" #??????????????? | | ?????????????????????????# ** #???????????????? | | ???????????????????????????#=! #???????????????? | | ??????????????????????????## ! #???????????????? | | ?????????????????????????##! !!! #??##???????????? | | ????????????????????????##R%### #?? #### ???????? | | ???????????????????????##@&###?###? # #??????? | | ???????????????????????# ##???# ??????? | | ???????????????????????## ##?# ???????? | | ????????????????????????#### ## #????????? | | ??????????????????????????# ## #????????? | | ????????????????????????### # #?????????? | | ????????????????????????# ## #?????????? | | ????????????????????????# #?????????? | | ????????????????????????## #?????????? | | ?????????????????????????## ##?????????? | | ??????????????????????????## #??????????? | | ?????????????????????????### ##??????????? | | ????????????????????????## ########????????? | | ????????????????????????# ###???# #????????? | | ????????????????????????# ###### #????????? | | ????????????????????????#### ## #????????? | | ???????????????????????????# #???????????? | | ???????????????????????????# ##???????????? | | ???????????????????????????# ##????????????? | | ???????????????????????????# #?????????????? | | ???????????????????????????# #?????????????? | | ???????????????????????????## ##????????????? | | ????????????????????????????### #????????????? | | ????????????????????????###??## ##????????????? | | ???????????????????????## ### ###???????????? | +----------------------------------------------------+ Best States ------------- Heat Dissipation 25 Energy Generation 15 Energy Capacity 250 Matter Stores 300 Matter Capacity 300 Sight Range 16 Terrain Scan Density 10 Evasion (%) 40 Recoil Reduction 2 Item Schematics ----------------- None Robot Schematics ------------------ None Fabricated ------------ Nothing Repaired ---------- Nothing Alien Tech Used ----------------- None Achievements -------------- None Challenges ------------ None Game ------ Seed EnergyEnergySpoofer Manual? 0 Play Time 00:07:59 Cumulative 291.5 hours Start 2025.08.23 @ 20:17:48 End 2025.08.23 @ 20:23:45 Sessions 1 Manual Loads 0 Difficulty Rogue Special Mode None Game No. 209 Rogue 209 Adventurer 0 Explorer 0 Win Type - Total 17 Types 8/0/5/1/1/0/0/1/0/1 Lore% 79 Gallery% 76 Achievement% 76 Wizard Run 0 Options --------- Layout 1 ASCII 0 Keyboard 0 Movement Mouse Keybinds 0 Fullscreen 2 Font 24/Smallcaps Map View 50x35 Zoom Use 0% Tactical HUD 1 Map Filters NONE Filters NONE Steam 1 RUN: 3b5be5e6-661b-42a8-86e2-d0da27b43ca2